Workbook

Sheet 2020及以前年度
A1: 2020及以前年度新能源汽车推广应用补助资金清算审核车辆信息表
A2: 地区 | B2: 序号 | C2: 车辆生产企业 | D2: 车辆型号 | E2: 申报推广数 （辆） | F2: 申请补助标准 （万元） | G2: 申请清算资金 （万元） | H2: 核定推广数 （辆） | I2: 核定补助标准 （万元） | J2: 应清算补助资金 （万元） | K2: 按整车企业取整后补助资金（万元） | L2: 核减原因 | M2: 此前待扣回预拨资金（万元） | N2: 此次扣回预拨资金（万元） | O2: 扣回相应预拨资金后剩余资金（万元）
A3: 总计 | E3: =SUM(E4:E1576)/3 -> 82356 | G3: =SUM(G4:G1576)/3 -> 151161.0798 | H3: =SUM(H4:H1576)/3 -> 74743 | J3: =SUM(J4:J1576)/3 -> 136604.8159 | K3: =SUM(K4:K1576)/2 -> 136607 | M3: =SUM(M4:M1576)/2 -> 1323547 | N3: =SUM(N4:N1576)/2 -> 105746 | O3: =SUM(O4:O1576)/2 -> 30861
A4: 北京市 | B4: 合计 | E4: =E5+E40+E60 -> 8863 | G4: =G5+G40+G60 -> 13099.2547 | H4: 7244 | J4: 10658.2512 | K4: 10658 | M4: 22636 | N4: 7649 | O4: 3009
B5: 1 | C5: 北京汽车股份有限公司 | D5: 小计 | E5: =SUM(E6:E39) -> 4708 | G5: =SUM(G6:G39) -> 6981.6197 | H5: =SUM(H6:H39) -> 3431 | J5: =SUM(J6:J39) -> 5010.933 | K5: =ROUND(J5,0) -> 5011 | M5: 10880 | N5: =K5 -> 5011 | O5: =K5-N5 -> 0
D6: BJ7000C5D2-BEV | E6: 37 | F6: 1.4175 | G6: =E6*F6 -> 52.4475 | H6: 23 | I6: 1.4175 | J6: =H6*I6 -> 32.6025 | L6: 核减14辆，原因为：不符合行驶里程数要求
D7: BJ7000C5D2-BEV | E7: 31 | F7: 1.575 | G7: =E7*F7 -> 48.825 | H7: 18 | I7: 1.575 | J7: =H7*I7 -> 28.35 | L7: 核减13辆，原因为：不符合行驶里程数要求
D8: BJ7000C5D2-BEV | E8: 2 | F8: 2.025 | G8: 4.05 | H8: 2 | I8: 2.025 | J8: 4.05
D9: BJ7000C5D2-BEV | E9: 1 | F9: 2.25 | G9: 2.25 | H9: 1 | I9: 2.25 | J9: 2.25
D10: BJ7000C5D3-BEV | E10: 2387 | F10: 1.4175 | G10: 3383.5725 | H10: 2269 | I10: 1.4175 | J10: 3216.3075 | L10: 核减118辆，原因为：103辆不符合行驶里程数要求；1辆需进一步核实后予以清算；14辆车辆注册登记信息有误
D11: BJ7000C5D3-BEV | E11: 1337 | F11: 1.575 | G11: 2105.775 | H11: 377 | I11: 1.575 | J11: 593.775 | L11: 核减960辆，原因为：91辆不符合行驶里程数要求；859辆需经地方主管部门复核后予以清算；2辆需进一步核实后予以清算；8辆车辆注册登记信息有误
D12: BJ7000C5D3-BEV | E12: 16 | F12: 2.025 | G12: 32.4 | H12: 11 | I12: 2.025 | J12: 22.275 | L12: 核减5辆，原因为：2辆需进一步核实后予以清算；3辆车辆注册登记信息有误
D13: BJ7000C5D3-BEV | E13: 3 | F13: 2.25 | G13: 6.75 | H13: 3 | I13: 2.25 | J13: 6.75
D14: BJ7000C5D4-BEV | E14: 16 | F14: 1.4175 | G14: 22.68 | H14: 13 | I14: 1.4175 | J14: 18.4275 | L14: 核减3辆，原因为：1辆不符合行驶里程数要求；2辆现场核查不通过
D15: BJ7000C5D4-BEV | E15: 1 | F15: 1.575 | G15: 1.575 | H15: 1 | I15: 1.575 | J15: 1.575
D16: BJ7000C5D4-BEV | E16: 2 | F16: 2.025 | G16: 4.05 | H16: 2 | I16: 2.025 | J16: 4.05
D17: BJ7000C5D5-BEV | E17: 5 | F17: 1.4175 | G17: 7.0875 | H17: 3 | I17: 1.4175 | J17: 4.2525 | L17: 核减2辆，原因为：不符合行驶里程数要求
D18: BJ7000C5D5-BEV | E18: 3 | F18: 1.575 | G18: 4.725 | H18: 3 | I18: 1.575 | J18: 4.725
D19: BJ7000C5D5-BEV | E19: 1 | F19: 2.025 | G19: 2.025 | H19: 1 | I19: 2.025 | J19: 2.025
D20: BJ7000C5D7-BEV | E20: 142 | F20: 1.575 | G20: 223.65 | H20: 128 | I20: 1.575 | J20: 201.6 | L20: 核减14辆，原因为：13辆不符合行驶里程数要求；1辆现场核查不通过
D21: BJ7000C5D7-BEV | E21: 168 | F21: 1.75 | G21: 294 | H21: 156 | I21: 1.75 | J21: 273 | L21: 核减12辆，原因为：9辆不符合行驶里程数要求；1辆需进一步核实后予以清算；2辆车辆注册登记信息有误
D22: BJ7000C5D7-BEV | E22: 12 | F22: 2.25 | G22: 27 | H22: 7 | I22: 2.25 | J22: 15.75 | L22: 核减5辆，原因为：车辆注册登记信息有误
D23: BJ7000C5DA-BEV | E23: 17 | F23: 1.575 | G23: 26.775 | H23: 17 | I23: 1.575 | J23: 26.775
D24: BJ7000C5DA-BEV | E24: 107 | F24: 1.75 | G24: 187.25 | H24: 99 | I24: 1.75 | J24: 173.25 | L24: 核减8辆，原因为：6辆不符合行驶里程数要求；2辆需进一步核实后予以清算
D25: BJ7000C5E6-BEV | E25: 1 | F25: 0.4032 | G25: 0.4032 | H25: 0 | I25: 0 | J25: 0 | L25: 核减1辆，原因为：需进一步核实后予以清算
D26: BJ7001U5E2-BEV | E26: 52 | F26: 1.134 | G26: 58.968 | H26: 37 | I26: 1.134 | J26: 41.958 | L26: 核减15辆，原因为：13辆不符合行驶里程数要求；2辆车辆注册登记信息有误
D27: BJ7001U5E2-BEV | E27: 9 | F27: 1.26 | G27: 11.34 | H27: 6 | I27: 1.26 | J27: 7.56 | L27: 核减3辆，原因为：需进一步核实后予以清算
D28: BJ7001U5E2-BEV | E28: 11 | F28: 1.575 | G28: 17.325 | H28: 3 | I28: 1.575 | J28: 4.725 | L28: 核减8辆，原因为：不符合行驶里程数要求
D29: BJ7001U5E2-BEV | E29: 1 | F29: 1.62 | G29: 1.62 | H29: 1 | I29: 1.62 | J29: 1.62
D30: BJ7001U5E2-BEV | E30: 1 | F30: 2.25 | G30: 2.25 | H30: 1 | I30: 2.25 | J30: 2.25
D31: BJ7003U3D2-BEV | E31: 120 | F31: 1.134 | G31: 136.08 | H31: 89 | I31: 1.134 | J31: 100.926 | L31: 核减31辆，原因为：30辆不符合行驶里程数要求；1辆需进一步核实后予以清算
D32: BJ7003U3D2-BEV | E32: 18 | F32: 1.26 | G32: 22.68 | H32: 17 | I32: 1.26 | J32: 21.42 | L32: 核减1辆，原因为：车辆注册登记信息有误
D33: BJ7003U3D2-BEV | E33: 61 | F33: 1.575 | G33: 96.075 | H33: 38 | I33: 1.575 | J33: 59.85 | L33: 核减23辆，原因为：22辆不符合行驶里程数要求；1辆车辆注册登记信息有误
D34: BJ7003U3D2-BEV | E34: 36 | F34: 1.62 | G34: 58.32 | H34: 22 | I34: 1.62 | J34: 35.64 | L34: 核减14辆，原因为：3辆需进一步核实后予以清算；11辆车辆注册登记信息有误
D35: BJ7003U3D2-BEV | E35: 1 | F35: 2.25 | G35: 2.25 | H35: 1 | I35: 2.25 | J35: 2.25
D36: BJ7003U3D3-BEV | E36: 69 | F36: 1.134 | G36: 78.246 | H36: 56 | I36: 1.134 | J36: 63.504 | L36: 核减13辆，原因为：12辆不符合行驶里程数要求；1辆车辆注册登记信息有误
D37: BJ7003U3D3-BEV | E37: 13 | F37: 1.26 | G37: 16.38 | H37: 12 | I37: 1.26 | J37: 15.12 | L37: 核减1辆，原因为：车辆注册登记信息有误
D38: BJ7003U3D3-BEV | E38: 21 | F38: 1.575 | G38: 33.075 | H38: 8 | I38: 1.575 | J38: 12.6 | L38: 核减13辆，原因为：12辆不符合行驶里程数要求；1辆车辆注册登记信息有误
D39: BJ7003U3D3-BEV | E39: 6 | F39: 1.62 | G39: 9.72 | H39: 6 | I39: 1.62 | J39: 9.72
B40: 2 | C40: 北京新能源汽车股份有限公司 | D40: 小计 | E40: =SUM(E41:E59) -> 3409 | G40: =SUM(G41:G59) -> 3371.5178 | H40: =SUM(H41:H59) -> 3073 | J40: =SUM(J41:J59) -> 3008.8882 | K40: =ROUND(J40,0) -> 3009 | M40: 0 | N40: =M40 -> 0 | O40: =K40-N40 -> 3009
D41: BJ7000C5EB-BEV | E41: 163 | F41: 0.8165 | G41: =E41*F41 -> 133.0895 | H41: 137 | I41: 0.8165 | J41: =H41*I41 -> 111.8605 | L41: 核减26辆，原因为：不符合行驶里程数要求
D42: BJ7000C5ED-BEV | E42: 2180 | F42: 0.9072 | G42: 1977.696 | H42: 2113 | I42: 0.9072 | J42: 1916.9136 | L42: 核减67辆，原因为：63辆不符合行驶里程数要求；4辆车辆注册登记信息有误
D43: BJ7000C5ED-BEV | E43: 256 | F43: 1.134 | G43: 290.304 | H43: 232 | I43: 1.134 | J43: 263.088 | L43: 核减24辆，原因为：不符合行驶里程数要求
D44: BJ7000CTD-BEV | E44: 15 | F44: 1.4175 | G44: 21.2625 | H44: 14 | I44: 1.4175 | J44: 19.845 | L44: 核减1辆，原因为：不符合行驶里程数要求
D45: BJ7000CTD-BEV | E45: 35 | F45: 1.575 | G45: 55.125 | H45: 32 | I45: 1.575 | J45: 50.4 | L45: 核减3辆，原因为：2辆不符合行驶里程数要求；1辆车辆注册登记信息有误
D46: BJ7000USD1-BEV | E46: 87 | F46: 1.575 | G46: 137.025 | H46: 52 | I46: 1.575 | J46: 81.9 | L46: 核减35辆，原因为：34辆不符合行驶里程数要求；1辆车辆注册登记信息有误
D47: BJ7000USD1-BEV | E47: 33 | F47: 1.75 | G47: 57.75 | H47: 13 | I47: 1.75 | J47: 22.75 | L47: 核减20辆，原因为：不符合行驶里程数要求
D48: BJ7000USD1-BEV | E48: 24 | F48: 2.25 | G48: 54 | H48: 18 | I48: 2.25 | J48: 40.5 | L48: 核减6辆，原因为：2辆需进一步核实后予以清算；4辆车辆注册登记信息有误
D49: BJ7000USD1-BEV | E49: 3 | F49: 2.5 | G49: 7.5 | H49: 2 | I49: 2.5 | J49: 5 | L49: 核减1辆，原因为：车辆注册登记信息有误
D50: BJ7000USD2-BEV | E50: 16 | F50: 1.4175 | G50: 22.68 | H50: 13 | I50: 1.4175 | J50: 18.4275 | L50: 核减3辆，原因为：不符合行驶里程数要求
D51: BJ7000USD2-BEV | E51: 1 | F51: 1.575 | G51: 1.575 | H51: 1 | I51: 1.575 | J51: 1.575
D52: BJ7001BPHD-BEV | E52: 94 | F52: 0.9639 | G52: 90.6066 | H52: 69 | I52: 0.9639 | J52: 66.5091 | L52: 核减25辆，原因为：不符合行驶里程数要求
D53: BJ7001BPHD-BEV | E53: 26 | F53: 1.0603 | G53: 27.5678 | H53: 6 | I53: 1.0603 | J53: 6.3618 | L53: 核减20辆，原因为：不符合行驶里程数要求
D54: BJ7001BPHD-BEV | E54: 165 | F54: 1.377 | G54: 227.205 | H54: 164 | I54: 1.377 | J54: 225.828 | L54: 核减1辆，原因为：车辆注册登记信息有误
D55: BJ7001BPHD-BEV | E55: 2 | F55: 1.5147 | G55: 3.0294 | H55: 1 | I55: 1.5147 | J55: 1.5147 | L55: 核减1辆，原因为：车辆注册登记信息有误
D56: BJ7001BPHF-BEV | E56: 260 | F56: 0.8165 | G56: 212.29 | H56: 174 | I56: 0.8165 | J56: 142.071 | L56: 核减86辆，原因为：82辆不符合行驶里程数要求；4辆车辆注册登记信息有误
D57: BJ7001BPHF-BEV | E57: 15 | F57: 0.9072 | G57: 13.608 | H57: 11 | I57: 0.9072 | J57: 9.9792 | L57: 核减4辆，原因为：不符合行驶里程数要求
D58: BJ7001BPHF-BEV | E58: 14 | F58: 1.134 | G58: 15.876 | H58: 4 | I58: 1.134 | J58: 4.536 | L58: 核减10辆，原因为：不符合行驶里程数要求
D59: BJ7001BPHF-BEV | E59: 20 | F59: 1.1664 | G59: 23.328 | H59: 17 | I59: 1.1664 | J59: 19.8288 | L59: 核减3辆，原因为：需进一步核实后予以清算
B60: 3 | C60: 北汽福田汽车股份有限公司 | D60: 小计 | E60: =SUM(E61:E105) -> 746 | G60: =SUM(G61:G105) -> 2746.1172 | H60: =SUM(H61:H105) -> 740 | J60: =SUM(J61:J105) -> 2638.43 | K60: =ROUND(J60,0) -> 2638 | M60: 11756 | N60: =K60 -> 2638 | O60: =K60-N60 -> 0
D61: BJ1045EVJA10 | E61: 2 | F61: 2.8399 | G61: =E61*F61 -> 5.6798 | H61: 2 | I61: 2.5559 | J61: =H61*I61 -> 5.1118
D62: BJ1045EVJA9 | E62: 3 | F62: 3.6645 | G62: 10.9935 | H62: 3 | I62: 3.2981 | J62: 9.8943
D63: BJ4259EVPA1 | E63: 1 | F63: 5 | G63: 5 | H63: 1 | I63: 5 | J63: 5
D64: BJ5035XXYEV2 | E64: 1 | F64: 0.8853 | G64: 0.8853 | H64: 1 | I64: 0.8853 | J64: 0.8853
D65: BJ5035XXYEV2 | E65: 1 | F65: 1.7707 | G65: 1.7707 | H65: 1 | I65: 1.7707 | J65: 1.7707
D66: BJ5035XYZEV1 | E66: 19 | F66: 0.8853 | G66: 16.8207 | H66: 19 | I66: 0.8853 | J66: 16.8207
D67: BJ5035XYZEV1 | E67: 55 | F67: 1.7707 | G67: 97.3885 | H67: 55 | I67: 1.7707 | J67: 97.3885
D68: BJ5039XXYEV4 | E68: 2 | F68: 0.879 | G68: 1.758 | H68: 1 | I68: 0.879 | J68: 0.879 | L68: 核减1辆，原因为：不符合行驶里程数要求
D69: BJ5039XXYEV4 | E69: 4 | F69: 1.7581 | G69: 7.0324 | H69: 4 | I69: 1.7581 | J69: 7.0324
D70: BJ5039XXYEV6 | E70: 38 | F70: 1.7581 | G70: 66.8078 | H70: 38 | I70: 1.5822 | J70: 60.1236
D71: BJ5039XXYEV6 | E71: 37 | F71: 1.7581 | G71: 65.0497 | H71: 36 | I71: 1.7581 | J71: 63.2916 | L71: 核减1辆，原因为：不符合行驶里程数要求
D72: BJ5045CCYEV3 | E72: 2 | F72: 3.6645 | G72: 7.329 | H72: 2 | I72: 3.6645 | J72: 7.329
D73: BJ5045XLCEV3 | E73: 3 | F73: 3.6645 | G73: 10.9935 | H73: 3 | I73: 3.6645 | J73: 10.9935
D74: BJ5045XLCEV3 | E74: 1 | F74: 3.6645 | G74: 3.6645 | H74: 1 | I74: 3.2981 | J74: 3.2981
D75: BJ5045XXYEV10 | E75: 48 | F75: 2.8399 | G75: 136.3152 | H75: 48 | I75: 2.5559 | J75: 122.6832
D76: BJ5045XXYEV10 | E76: 15 | F76: 2.8399 | G76: 42.5985 | H76: 15 | I76: 2.8399 | J76: 42.5985
D77: BJ5045XXYEV3 | E77: 7 | F77: 1.8323 | G77: 12.8261 | H77: 7 | I77: 1.8323 | J77: 12.8261
D78: BJ5045XXYEV3 | E78: 1 | F78: 3.6645 | G78: 3.6645 | H78: 1 | I78: 3.6645 | J78: 3.6645
D79: BJ5045XXYEV7 | E79: 2 | F79: 2.8399 | G79: 5.6798 | H79: 2 | I79: 2.8399 | J79: 5.6798
D80: BJ5045XXYEV9 | E80: 38 | F80: 3.6645 | G80: 139.251 | H80: 38 | I80: 3.6645 | J80: 139.251
D81: BJ5045XXYEV9 | E81: 20 | F81: 3.6645 | G81: 73.29 | H81: 19 | I81: 3.2981 | J81: 62.6639 | L81: 核减1辆，原因为：不符合行驶里程数要求
D82: BJ5048XXYEV3 | E82: 21 | F82: 2.7972 | G82: 58.7412 | H82: 21 | I82: 2.5175 | J82: 52.8675
D83: BJ5048XXYEV3 | E83: 5 | F83: 2.7972 | G83: 13.986 | H83: 4 | I83: 2.7972 | J83: 11.1888 | L83: 核减1辆，原因为：不符合行驶里程数要求
D84: BJ5065XXYEV1 | E84: 3 | F84: 3.6645 | G84: 10.9935 | H84: 3 | I84: 3.6645 | J84: 10.9935
D85: BJ6105CHEVCA-17 | E85: 5 | F85: 3.0204 | G85: 15.102 | H85: 5 | I85: 2.4163 | J85: 12.0815
D86: BJ6105EVCA-45 | E86: 23 | F86: 8.168 | G86: 187.864 | H86: 23 | I86: 8.168 | J86: 187.864
D87: BJ6105EVCA-47 | E87: 4 | F87: 9 | G87: 36 | H87: 4 | I87: 9 | J87: 36
D88: BJ6105EVCA-49 | E88: 51 | F88: 9 | G88: 459 | H88: 51 | I88: 9 | J88: 459
D89: BJ6105EVCA-51 | E89: 11 | F89: 9 | G89: 99 | H89: 11 | I89: 9 | J89: 99
D90: BJ6105EVCA-53 | E90: 18 | F90: 9 | G90: 162 | H90: 18 | I90: 9 | J90: 162
D91: BJ6117EVCA-2 | E91: 2 | F91: 9 | G91: 18 | H91: 2 | I91: 9 | J91: 18
D92: BJ6117EVUA-6 | E92: 14 | F92: 9 | G92: 126 | H92: 14 | I92: 9 | J92: 126
D93: BJ6123CHEVCA-11 | E93: 6 | F93: 3.0204 | G93: 18.1224 | H93: 5 | I93: 2.4163 | J93: 12.0815 | L93: 核减1辆，原因为：不符合行驶里程数要求
D94: BJ6123EVCA-55 | E94: 3 | F94: 8.1 | G94: 24.3 | H94: 3 | I94: 8.1 | J94: 24.3
D95: BJ6123SHEVCA-7 | E95: 45 | F95: 2.3184 | G95: 104.328 | H95: 45 | I95: 1.8547 | J95: 83.4615
D96: BJ6128SHEVCA-5 | E96: 15 | F96: 2.6496 | G96: 39.744 | H96: 15 | I96: 2.1197 | J96: 31.7955
D97: BJ6160SHEVCA-3 | E97: 31 | F97: 2.6496 | G97: 82.1376 | H97: 31 | I97: 2.1197 | J97: 65.7107
D98: BJ6650EVCA-7 | E98: 22 | F98: 2.5 | G98: 55 | H98: 22 | I98: 2.5 | J98: 55
D99: BJ6650EVCA-9 | E99: 122 | F99: 2.5 | G99: 305 | H99: 122 | I99: 2.5 | J99: 305
D100: BJ6805EVCA-30 | E100: 8 | F100: 5.5 | G100: 44 | H100: 8 | I100: 5.5 | J100: 44
D101: BJ6816EVCA | E101: 2 | F101: 5.5 | G101: 11 | H101: 1 | I101: 5.5 | J101: 5.5 | L101: 核减1辆，原因为：不符合行驶里程数要求
D102: BJ6851EVCA-30 | E102: 11 | F102: 5.5 | G102: 60.5 | H102: 11 | I102: 5.5 | J102: 60.5
D103: BJ6851EVCA-33 | E103: 11 | F103: 5.5 | G103: 60.5 | H103: 11 | I103: 5.5 | J103: 60.5
D104: BJ6851EVCA-35 | E104: 4 | F104: 5.5 | G104: 22 | H104: 4 | I104: 5.5 | J104: 22
D105: BJ6855SHEVCA-1 | E105: 9 | F105: 2 | G105: 18 | H105: 9 | I105: 1.6 | J105: 14.4
A106: 天津市 | B106: 合计 | E106: =E107 -> 3265 | G106: =G107 -> 2663.805 | H106: 3174 | J106: 2588.955 | K106: 2589 | M106: 4080 | N106: 2589 | O106: 0
B107: 1 | C107: 一汽丰田汽车有限公司 | D107: 小计 | E107: =SUM(E108:E117) -> 3265 | G107: =SUM(G108:G117) -> 2663.805 | H107: =SUM(H108:H117) -> 3174 | J107: =SUM(J108:J117) -> 2588.955 | K107: =ROUND(J107,0) -> 2589 | M107: 4080 | N107: =K107 -> 2589 | O107: =K107-N107 -> 0
D108: TV7001BEV | E108: 187 | F108: 1.8 | G108: =E108*F108 -> 336.6 | H108: 180 | I108: 1.8 | J108: =H108*I108 -> 324 | L108: 核减7辆，原因为：需进一步核实后予以清算
D109: TV7186HEV | E109: 2 | F109: 0.595 | G109: 1.19 | H109: 2 | I109: 0.595 | J109: 1.19
D110: TV7186HEV | E110: 1 | F110: 0.7 | G110: 0.7 | H110: 1 | I110: 0.7 | J110: 0.7
D111: TV7186HEV | E111: 9 | F111: 0.85 | G111: 7.65 | H111: 9 | I111: 0.85 | J111: 7.65
D112: TV7186HEV | E112: 2 | F112: 1 | G112: 2 | H112: 2 | I112: 1 | J112: 2
D113: TV7186HEV6 | E113: 717 | F113: 0.595 | G113: 426.615 | H113: 699 | I113: 0.595 | J113: 415.905 | L113: 核减18辆，原因为：17辆不符合行驶里程数要求；1辆车辆注册登记信息有误
D114: TV7186HEV6 | E114: 777 | F114: 0.7 | G114: 543.9 | H114: 777 | I114: 0.7 | J114: 543.9
D115: TV7186HEV6 | E115: 47 | F115: 0.7 | G115: 32.9 | H115: 8 | I115: 0.595 | J115: 4.76 | L115: 核减39辆，原因为：34辆不符合行驶里程数要求；1辆车辆注册登记信息有误；4辆现场核查不通过
D116: TV7186HEV6 | E116: 1405 | F116: 0.85 | G116: 1194.25 | H116: 1381 | I116: 0.85 | J116: 1173.85 | L116: 核减24辆，原因为：19辆需进一步核实后予以清算；5辆车辆注册登记信息有误
D117: TV7186HEV6 | E117: 118 | F117: 1 | G117: 118 | H117: 115 | I117: 1 | J117: 115 | L117: 核减3辆，原因为：2辆需进一步核实后予以清算；1辆车辆注册登记信息有误
A118: 河北省 | B118: 合计 | E118: =E119+E142 -> 1219 | G118: =G119+G142 -> 1590.8432 | H118: 1144 | J118: 1492.339 | K118: 1492 | M118: 31455 | N118: 1492 | O118: 0
B119: 1 | C119: 长城汽车股份有限公司 | D119: 小计 | E119: =SUM(E120:E141) -> 209 | G119: =SUM(G120:G141) -> 227.3655 | H119: =SUM(H120:H141) -> 206 | J119: =SUM(J120:J141) -> 223.9635 | K119: =ROUND(J119,0) -> 224 | M119: 30056 | N119: =K119 -> 224 | O119: =K119-N119 -> 0
D120: CC6481AD23CPHEV | E120: 3 | F120: 0.595 | G120: =E120*F120 -> 1.785 | H120: 3 | I120: 0.595 | J120: =H120*I120 -> 1.785
D121: CC6483AD23BPHEV | E121: 11 | F121: 0.595 | G121: 6.545 | H121: 11 | I121: 0.595 | J121: 6.545
D122: CC6483AD23CPHEV | E122: 11 | F122: 0.595 | G122: 6.545 | H122: 11 | I122: 0.595 | J122: 6.545
D123: CC6483AD23CPHEV | E123: 1 | F123: 0.7 | G123: 0.7 | H123: 1 | I123: 0.7 | J123: 0.7
D124: CC6484AD21APHEV | E124: 1 | F124: 0.2975 | G124: 0.2975 | H124: 1 | I124: 0.2975 | J124: 0.2975
D125: CC7000BJ01CBEV | E125: 3 | F125: 1.4175 | G125: 4.2525 | H125: 3 | I125: 1.4175 | J125: 4.2525
D126: CC7000BJ02ABEV | E126: 4 | F126: 1.575 | G126: 6.3 | H126: 4 | I126: 1.575 | J126: 6.3
D127: CC7000ZM00CBEV | E127: 99 | F127: 1.134 | G127: 112.266 | H127: 96 | I127: 1.134 | J127: 108.864 | L127: 核减3辆，原因为：车辆注册登记信息有误
D128: CC7000ZM00CBEV | E128: 12 | F128: 1.26 | G128: 15.12 | H128: 12 | I128: 1.26 | J128: 15.12
D129: CC7000ZM00EBEV | E129: 3 | F129: 1.134 | G129: 3.402 | H129: 3 | I129: 1.134 | J129: 3.402
D130: CC7000ZM01BEV | E130: 1 | F130: 0.7736 | G130: 0.7736 | H130: 1 | I130: 0.7736 | J130: 0.7736
D131: CC7000ZM02CBEV | E131: 16 | F131: 0.9975 | G131: 15.96 | H131: 16 | I131: 0.9975 | J131: 15.96
D132: CC7000ZM02CBEV | E132: 3 | F132: 1.0973 | G132: 3.2919 | H132: 3 | I132: 1.0973 | J132: 3.2919
D133: CC7000ZM02DBEV | E133: 12 | F133: 1.036 | G133: 12.432 | H133: 12 | I133: 1.036 | J133: 12.432
D134: CC7000ZM05ABEV | E134: 1 | F134: 1.26 | G134: 1.26 | H134: 1 | I134: 1.26 | J134: 1.26
D135: CC7001CE03ABEV | E135: 4 | F135: 1.4175 | G135: 5.67 | H135: 4 | I135: 1.4175 | J135: 5.67
D136: CC7001CE03ABEV | E136: 2 | F136: 1.575 | G136: 3.15 | H136: 2 | I136: 1.575 | J136: 3.15
D137: CC7001CE03BEV | E137: 6 | F137: 1.4175 | G137: 8.505 | H137: 6 | I137: 1.4175 | J137: 8.505
D138: CC7001CE03BEV | E138: 1 | F138: 1.575 | G138: 1.575 | H138: 1 | I138: 1.575 | J138: 1.575
D139: CC7001ZM00BBEV | E139: 1 | F139: 1.029 | G139: 1.029 | H139: 1 | I139: 1.029 | J139: 1.029
D140: CC7001ZM01BEV | E140: 9 | F140: 1.134 | G140: 10.206 | H140: 9 | I140: 1.134 | J140: 10.206
D141: CC7001ZM02CBEV | E141: 5 | F141: 1.26 | G141: 6.3 | H141: 5 | I141: 1.26 | J141: 6.3
B142: 2 | C142: 河北长安汽车有限公司 | D142: 小计 | E142: =SUM(E143:E164) -> 1010 | G142: =SUM(G143:G164) -> 1363.4777 | H142: =SUM(H143:H164) -> 938 | J142: =SUM(J143:J164) -> 1268.3755 | K142: =ROUND(J142,0) -> 1268 | M142: 1399 | N142: =K142 -> 1268 | O142: =K142-N142 -> 0
D143: SC1027DACABEV | E143: 72 | F143: 1.0483 | G143: =E143*F143 -> 75.4776 | H143: 61 | I143: 1.0483 | J143: =H143*I143 -> 63.9463 | L143: 核减11辆，原因为：10辆企业填报信息存在错误；1辆车辆注册登记信息有误
D144: SC1027DACABEV | E144: 116 | F144: 1.1648 | G144: 135.1168 | H144: 83 | I144: 1.1648 | J144: 96.6784 | L144: 核减33辆，原因为：企业填报信息存在错误
D145: SC1032SAAABEV | E145: 1 | F145: 1.0483 | G145: 1.0483 | H145: 1 | I145: 1.0483 | J145: 1.0483
D146: SC1032SAAABEV | E146: 5 | F146: 1.1648 | G146: 5.824 | H146: 5 | I146: 1.1648 | J146: 5.824
D147: SC5022XXYAABBEV | E147: 126 | F147: 1.1309 | G147: 142.4934 | H147: 124 | I147: 1.1309 | J147: 140.2316 | L147: 核减2辆，原因为：1辆企业填报信息存在错误；1辆车辆注册登记信息有误
D148: SC5022XXYAABBEV | E148: 52 | F148: 1.2566 | G148: 65.3432 | H148: 52 | I148: 1.2566 | J148: 65.3432
D149: SC5022XXYDAAABEV | E149: 37 | F149: 1.0644 | G149: 39.3828 | H149: 35 | I149: 1.0644 | J149: 37.254 | L149: 核减2辆，原因为：车辆注册登记信息有误
D150: SC5022XXYDAAABEV | E150: 26 | F150: 1.1827 | G150: 30.7502 | H150: 26 | I150: 1.1827 | J150: 30.7502
D151: SC5031XXYAAEBEV | E151: 31 | F151: 1.3186 | G151: 40.8766 | H151: 30 | I151: 1.3186 | J151: 39.558 | L151: 核减1辆，原因为：企业填报信息存在错误
D152: SC5031XXYAAEBEV | E152: 22 | F152: 1.4651 | G152: 32.2322 | H152: 22 | I152: 1.4651 | J152: 32.2322
D153: SC5031XXYAAFBEV | E153: 130 | F153: 1.3186 | G153: 171.418 | H153: 128 | I153: 1.3186 | J153: 168.7808 | L153: 核减2辆，原因为：车辆注册登记信息有误
D154: SC5031XXYAAFBEV | E154: 199 | F154: 1.4651 | G154: 291.5549 | H154: 199 | I154: 1.4651 | J154: 291.5549
D155: SC5032XXYDAAABEV | E155: 91 | F155: 1.0483 | G155: 95.3953 | H155: 91 | I155: 1.0483 | J155: 95.3953
D156: SC5032XXYDAAABEV | E156: 2 | F156: 1.1648 | G156: 2.3296 | H156: 2 | I156: 1.1648 | J156: 2.3296
D157: SC5032XXYDAAABEV | E157: 1 | F157: 1.1648 | G157: 1.1648 | H157: 1 | I157: 1.0483 | J157: 1.0483
D158: SC5033XXYGBEV | E158: 16 | F158: 1.5246 | G158: 24.3936 | H158: 16 | I158: 1.5246 | J158: 24.3936
D159: SC5033XXYGBEV | E159: 21 | F159: 1.694 | G159: 35.574 | H159: 21 | I159: 1.694 | J159: 35.574
D160: SC5033XXYHBEV | E160: 24 | F160: 1.5246 | G160: 36.5904 | H160: 8 | I160: 1.5246 | J160: 12.1968 | L160: 核减16辆，原因为：企业填报信息存在错误
D161: SC5033XXYHBEV | E161: 17 | F161: 1.694 | G161: 28.798 | H161: 13 | I161: 1.694 | J161: 22.022 | L161: 核减4辆，原因为：企业填报信息存在错误
D162: SC6805ABEV | E162: 17 | F162: 5.042 | G162: 85.714 | H162: 17 | I162: 5.042 | J162: 85.714
D163: SC6805BBEV | E163: 3 | F163: 5.5 | G163: 16.5 | H163: 3 | I163: 5.5 | J163: 16.5
D164: SC6805EBEV | E164: 1 | F164: 5.5 | G164: 5.5 | H164: 0 | I164: 0 | J164: 0 | L164: 核减1辆，原因为：车辆注册登记信息有误
A165: 山西省 | B165: 合计 | E165: =E166+E177 -> 986 | G165: =G166+G177 -> 1113.0642 | H165: 803 | J165: 942.812 | K165: 943 | M165: 12922 | N165: 943 | O165: 0
B166: 1 | C166: 成都大运汽车集团有限公司 | D166: 小计 | E166: =SUM(E167:E176) -> 635 | G166: =SUM(G167:G176) -> 638.9244 | H166: =SUM(H167:H176) -> 456 | J166: =SUM(J167:J176) -> 474.0444 | K166: =ROUND(J166,0) -> 474 | M166: 4206 | N166: =K166 -> 474 | O166: =K166-N166 -> 0
D167: CGC6371BEV2S1 | E167: 192 | F167: 0.4536 | G167: =E167*F167 -> 87.0912 | H167: 116 | I167: 0.4536 | J167: =H167*I167 -> 52.6176 | L167: 核减76辆，原因为：不符合行驶里程数要求
D168: CGC6371BEV2S1 | E168: 42 | F168: 0.648 | G168: 27.216 | H168: 38 | I168: 0.648 | J168: 24.624 | L168: 核减4辆，原因为：需进一步核实后予以清算
D169: CGC6371BEV2S1 | E169: 2 | F169: 0.9072 | G169: 1.8144 | H169: 0 | I169: 0 | J169: 0 | L169: 核减2辆，原因为：不符合行驶里程数要求
D170: CGC6371BEV2S1 | E170: 15 | F170: 1.296 | G170: 19.44 | H170: 14 | I170: 1.296 | J170: 18.144 | L170: 核减1辆，原因为：需进一步核实后予以清算
D171: CGC6481BEV2P1 | E171: 68 | F171: 1.134 | G171: 77.112 | H171: 55 | I171: 1.134 | J171: 62.37 | L171: 核减13辆，原因为：1辆不符合行驶里程数要求；12辆企业填报信息存在错误
D172: CGC6481BEV2P1 | E172: 108 | F172: 1.26 | G172: 136.08 | H172: 108 | I172: 1.26 | J172: 136.08
D173: CGC6481BEV2P1 | E173: 64 | F173: 1.26 | G173: 80.64 | H173: 2 | I173: 1.134 | J173: 2.268 | L173: 核减62辆，原因为：3辆不符合行驶里程数要求；55辆企业填报信息存在错误；1辆未按有关要求上传车辆运行数据；3辆需进一步核实后予以清算
D174: CGC6481BEV2P1 | E174: 19 | F174: 1.62 | G174: 30.78 | H174: 13 | I174: 1.62 | J174: 21.06 | L174: 核减6辆，原因为：1辆企业填报信息存在错误；5辆需进一步核实后予以清算
D175: CGC7000BEV2J3 | E175: 8 | F175: 1.0206 | G175: 8.1648 | H175: 8 | I175: 1.0206 | J175: 8.1648
D176: CGC7000BEV2J3 | E176: 117 | F176: 1.458 | G176: 170.586 | H176: 102 | I176: 1.458 | J176: 148.716 | L176: 核减15辆，原因为：1辆未按有关要求上传车辆运行数据；14辆需进一步核实后予以清算
B177: 2 | C177: 山西新能源汽车工业有限公司 | D177: 小计 | E177: =SUM(E178:E184) -> 351 | G177: =SUM(G178:G184) -> 474.1398 | H177: =SUM(H178:H184) -> 347 | J177: =SUM(J178:J184) -> 468.7676 | K177: =ROUND(J177,0) -> 469 | M177: 8716 | N177: =K177 -> 469 | O177: =K177-N177 -> 0
D178: JHC5030XXYBEVK2 | E178: 6 | F178: 1.5822 | G178: =E178*F178 -> 9.4932 | H178: 6 | I178: 1.5822 | J178: =H178*I178 -> 9.4932
D179: JHC5030XXYBEVK2 | E179: 21 | F179: 1.7581 | G179: 36.9201 | H179: 21 | I179: 1.7581 | J179: 36.9201
D180: JHC5030XXYBEVK3 | E180: 2 | F180: 1.4651 | G180: 2.9302 | H180: 2 | I180: 1.4651 | J180: 2.9302
D181: JHC5032XXYBEVK1 | E181: 177 | F181: 1.258 | G181: 222.666 | H181: 176 | I181: 1.258 | J181: 221.408 | L181: 核减1辆，原因为：不符合行驶里程数要求
D182: JHC5032XXYBEVK1 | E182: 114 | F182: 1.3978 | G182: 159.3492 | H182: 112 | I182: 1.3978 | J182: 156.5536 | L182: 核减2辆，原因为：不符合行驶里程数要求
D183: JHC5037XXYBEVL1 | E183: 18 | F183: 1.3186 | G183: 23.7348 | H183: 17 | I183: 1.3186 | J183: 22.4162 | L183: 核减1辆，原因为：不符合行驶里程数要求
D184: JHC5037XXYBEVL1 | E184: 13 | F184: 1.4651 | G184: 19.0463 | H184: 13 | I184: 1.4651 | J184: 19.0463
A185: 内蒙古自治区 | B185: 合计 | E185: =E186 -> 229 | G185: =G186 -> 1145 | H185: 141 | J185: 705 | K185: 705 | M185: 2332 | N185: 705 | O185: 0
B186: 1 | C186: 北奔重型汽车集团有限公司 | D186: 小计 | E186: =SUM(E187:E189) -> 229 | G186: =SUM(G187:G189) -> 1145 | H186: =SUM(H187:H189) -> 141 | J186: =SUM(J187:J189) -> 705 | K186: =ROUND(J186,0) -> 705 | M186: 2332 | N186: =K186 -> 705 | O186: =K186-N186 -> 0
D187: ND3310DBXJ7Z00BEV | E187: 10 | F187: 5 | G187: =E187*F187 -> 50 | H187: 0 | I187: 0 | J187: =H187*I187 -> 0 | L187: 核减10辆，原因为：不符合行驶里程数要求
D188: ND4250BBXJ7Z01BEV | E188: 61 | F188: 5 | G188: =E188*F188 -> 305 | H188: 25 | I188: 5 | J188: =H188*I188 -> 125 | L188: 核减36辆，原因为：32辆不符合行驶里程数要求；3辆未按有关要求上传车辆运行数据；1辆车辆注册登记信息有误
D189: ND4250BBXJ7Z02BEV | E189: 158 | F189: 5 | G189: =E189*F189 -> 790 | H189: 116 | I189: 5 | J189: =H189*I189 -> 580 | L189: 核减42辆，原因为：1辆企业填报信息存在错误；26辆不符合行驶里程数要求；14辆未按有关要求上传车辆运行数据；1辆车辆注册登记信息有误
A190: 吉林省 | B190: 合计 | E190: =E191+E199 -> 7500 | G190: =G191+G199 -> 14207.7967 | H190: 7408 | J190: 13921.9995 | K190: 13922 | M190: 60617 | N190: 13922 | O190: 0
B191: 1 | C191: 一汽-大众汽车有限公司 | D191: 小计 | E191: =SUM(E192:E198) -> 1357 | G191: =SUM(G192:G198) -> 1233.288 | H191: =SUM(H192:H198) -> 1326 | J191: =SUM(J192:J198) -> 1208.376 | K191: =ROUND(J191,0) -> 1208 | M191: 37125 | N191: =K191 -> 1208 | O191: =K191-N191 -> 0
D192: FV70010BABEV | E192: 539 | F192: 0.72 | G192: =E192*F192 -> 388.08 | H192: 530 | I192: 0.72 | J192: =H192*I192 -> 381.6 | L192: 核减9辆，原因为：6辆需进一步核实后予以清算；3辆车辆注册登记信息有误
D193: FV70010BABEV | E193: 330 | F193: 1.44 | G193: 475.2 | H193: 325 | I193: 1.44 | J193: 468 | L193: 核减5辆，原因为：1辆需进一步核实后予以清算；4辆车辆注册登记信息有误
D194: FV7002BABEV | E194: 227 | F194: 0.504 | G194: 114.408 | H194: 219 | I194: 0.504 | J194: 110.376 | L194: 核减8辆，原因为：5辆需进一步核实后予以清算；2辆车辆注册登记信息有误；1辆现场核查不通过
D195: FV7002BABEV | E195: 44 | F195: 0.72 | G195: 31.68 | H195: 44 | I195: 0.72 | J195: 31.68
D196: FV7002BABEV | E196: 23 | F196: 1.44 | G196: 33.12 | H196: 23 | I196: 1.44 | J196: 33.12
D197: FV7004BABEV | E197: 123 | F197: 0.72 | G197: 88.56 | H197: 115 | I197: 0.72 | J197: 82.8 | L197: 核减8辆，原因为：7辆需进一步核实后予以清算；1辆车辆注册登记信息有误
D198: FV7004BABEV | E198: 71 | F198: 1.44 | G198: 102.24 | H198: 70 | I198: 1.44 | J198: 100.8 | L198: 核减1辆，原因为：车辆注册登记信息有误
B199: 2 | C199: 中国第一汽车集团有限公司 | D199: 小计 | E199: =SUM(E200:E232) -> 6143 | G199: =SUM(G200:G232) -> 12974.5087 | H199: =SUM(H200:H232) -> 6082 | J199: =SUM(J200:J232) -> 12713.6235 | K199: =ROUND(J199,0) -> 12714 | M199: 23492 | N199: =K199 -> 12714 | O199: =K199-N199 -> 0
D200: CA5180XYKP62L4BEV | E200: 1 | F200: 5 | G200: =E200*F200 -> 5 | H200: 0 | I200: 0 | J200: =H200*I200 -> 0 | L200: 核减1辆，原因为：不符合行驶里程数要求
... 1376 more rows
